bitfinex/quotes_SOLUSD_20250413
["timestamp","ask_amount","ask_price","bid_price","bid_amount"]
[1744577355091,9.4392,126.77,126.73,27.89964486]
[1744577355408,29.45054486,126.77,126.72,27.89964486]
[1744577355708,27.89964486,126.74,126.69,27.89964486]
[1744577356410,17.8689,126.76,126.72,27.89964486]
[1744577356587,7.8889,126.76,126.72,27.89964486]
[1744577356793,9.4394,126.77,126.73,27.89964486]
[1744577357389,34.65890643,126.78,126.68,27.6286]
[1744577357390,6.6171,126.78,126.74,27.89964486]
[1744577357590,0.03,126.78,126.71,26.0]
[1744577357896,0.03,126.78,126.74,27.89964486]
[1744577358085,27.89964486,126.77,126.72,27.89964486]
[1744577358728,27.92964486,126.78,126.73,27.89964486]
[1744577358913,0.03,126.78,126.75,27.89964486]
[1744577359092,28.07180643,126.78,126.73,27.89964486]
[1744577359284,27.89964486,126.77,126.69,27.6264]
[1744577359618,27.89964486,126.75,126.7,27.89964486]
[1744577359803,35.78964486,126.75,126.7,27.89964486]
[1744577360107,7.89,126.75,126.71,27.89964486]
[1744577361308,7.889,126.76,126.72,27.89964486]
[1744577361497,7.889,126.76,126.67,19.7359]
[1744577361498,7.9179,126.78,126.73,27.89964486]
[1744577361807,7.9179,126.78,126.71,7.8918]
[1744577361808,0.03,126.78,126.76,27.89964486]
[1744577362614,0.03,126.78,126.77,27.89964486]
[1744577364605,0.03,126.78,126.77,35.78794486]
[1744577365205,0.03,126.78,126.77,27.89964486]
[1744577365685,0.03,126.78,126.73,7.8907]
[1744577365885,0.03,126.78,126.76,27.89964486]
[1744577369691,0.03,126.78,126.77,27.89964486]
[1744577370297,0.03,126.78,126.76,27.89964486]
[1744577370803,0.03,126.78,126.77,27.89964486]
[1744577371319,0.03,126.78,126.77,35.78794486]
[1744577376125,0.03,126.78,126.76,7.8887]
[1744577376297,0.03,126.78,126.72,19.7281]
[1744577376617,0.03,126.78,126.77,27.89964486]
[1744577378622,0.03,126.78,126.77,35.78794486]
[1744577379522,0.03,126.78,126.77,54.43759372]
[1744577380019,0.03,126.78,126.77,35.78794486]
[1744577382309,0.03,126.78,126.77,27.89964486]
[1744577382602,0.03,126.78,126.76,35.78844486]
[1744577383326,0.03,126.78,126.77,27.89964486]
[1744577384418,0.03,126.78,126.77,35.78794486]
[1744577386525,0.03,126.78,126.77,27.89964486]
[1744577387831,0.03,126.78,126.77,35.78794486]
[1744577390131,0.03,126.78,126.77,27.89964486]
[1744577390332,0.03,126.78,126.77,35.78794486]
[1744577395219,0.03,126.78,126.77,25.29510775]
[1744577395939,0.03,126.78,126.74,19.724]
[1744577396139,0.03,126.78,126.76,17.40680775]
[1744577396721,0.03,126.78,126.77,17.40680775]
[1744577396922,0.03,126.78,126.77,25.29510775]
[1744577399225,0.03,126.78,126.75,17.40680775]
[1744577399835,0.03,126.78,126.76,17.40680775]
[1744577400932,0.03,126.78,126.72,45.99645661]
[1744577401135,17.40680775,126.75,126.68,0.063]
[1744577401315,17.40680775,126.75,126.69,25.30000775]
[1744577401634,7.8883,126.77,126.74,17.40680775]
[1744577402023,6.6181,126.78,126.75,17.40680775]
[1744577402227,14.5059,126.78,126.75,17.40680775]
[1744577402414,7.9178,126.78,126.75,17.40680775]
[1744577402616,7.9178,126.78,126.74,17.40680775]
[1744577402818,27.6369,126.78,126.69,120.1464]
[1744577403017,7.9178,126.78,126.73,25.29740775]
[1744577403319,0.03,126.78,126.77,17.40680775]
[1744577403770,0.03,126.79,126.77,36.05645661]
[1744577403929,0.03,126.81,126.79,53.46326436]
[1744577404131,0.03,126.81,126.8,34.8136155]
[1744577404642,0.03,126.84,126.8,53.46326436]
[1744577405027,0.03,126.84,126.75,11.5174]
[1744577405248,27.85453545,126.82,126.75,7.8892]
[1744577405549,27.85453545,126.78,126.73,27.85453545]
[1744577405938,27.85453545,126.78,126.72,7.8914]
[1744577406131,27.85453545,126.76,126.7,17.8126]
[1744577406330,10.06216157,126.8,126.73,27.85453545]
[1744577406519,27.85453545,126.79,126.73,27.85453545]
[1744577406736,9.92,126.8,126.75,27.85453545]
[1744577407044,9.92,126.8,126.77,27.85453545]
[1744577407258,17.8066,126.8,126.76,27.85453545]
[1744577407543,45.66113545,126.8,126.73,7.8907]
[1744577407743,45.66113545,126.8,126.75,27.85453545]
[1744577407942,27.85453545,126.79,126.73,27.85453545]
[1744577408125,27.85453545,126.75,126.7,27.85453545]
[1744577408330,27.85453545,126.74,126.69,7.8932]
[1744577408515,27.85453545,126.74,126.68,35.81113545]
[1744577408721,27.85453545,126.74,126.69,27.85453545]
[1744577408927,27.85453545,126.75,126.69,27.85453545]
[1744577409131,0.14216157,126.75,126.69,27.85453545]
[1744577409440,7.8897,126.75,126.7,27.85453545]
[1744577409741,7.8897,126.75,126.68,35.81113545]
[1744577409742,27.85453545,126.74,126.68,35.81113545]
[1744577409943,27.85453545,126.74,126.68,27.91753545]
[1744577410122,27.85453545,126.72,126.68,0.063]
[1744577410318,27.6135,126.75,126.69,27.85453545]
[1744577410319,35.74423545,126.75,126.69,27.85453545]
[1744577410526,35.74423545,126.75,126.68,7.9566]
[1744577410527,7.8897,126.75,126.7,27.85453545]
[1744577410722,6.6581,126.76,126.73,27.85453545]
[1744577411040,7.8872,126.79,126.75,27.85453545]
[1744577411253,14.2878,126.8,126.76,27.85453545]
[1744577411944,0.14216157,126.79,126.75,27.85453545]
[1744577412126,27.85453545,126.78,126.73,27.85453545]
[1744577412327,0.14216157,126.79,126.74,27.85453545]
[1744577412529,0.14216157,126.79,126.75,27.85453545]
[1744577413018,6.4012,126.8,126.77,27.85453545]
[1744577413221,9.59046157,126.81,126.77,27.85453545]
[1744577413439,8.02806157,126.81,126.77,27.85453545]
[1744577413727,27.99669702,126.8,126.75,27.85453545]
[1744577414445,0.14216157,126.8,126.76,27.85453545]
[1744577414847,7.8859,126.81,126.77,27.85453545]
[1744577415550,27.85453545,126.78,126.69,19.7316]
[1744577415720,27.85453545,126.78,126.73,53.85453545]
[1744577415939,0.14216157,126.78,126.74,27.85453545]
[1744577416228,27.99669702,126.78,126.73,27.85453545]
[1744577416429,27.99669702,126.78,126.72,27.85453545]
[1744577416627,27.85453545,126.78,126.73,27.85453545]
[1744577416824,0.42648471,126.77,126.72,27.85453545]
[1744577417025,27.99669702,126.77,126.71,27.85453545]
[1744577417453,7.8889,126.76,126.71,35.74633545]
[1744577418151,42.14463545,126.76,126.7,7.8923]
[1744577418327,6.4012,126.76,126.72,27.85453545]
[1744577418538,8.03046157,126.77,126.74,27.85453545]
[1744577419153,0.14216157,126.77,126.74,27.85453545]
[1744577419932,8.03046157,126.77,126.73,27.85453545]
[1744577420153,8.03046157,126.77,126.72,35.74563545]
[1744577421449,35.88499702,126.77,126.72,35.74563545]
[1744577422451,28.28102016,126.76,126.68,0.063]
[1744577422748,28.28102016,126.76,126.69,35.74773545]
[1744577422749,27.85453545,126.75,126.69,35.74773545]
[1744577423144,27.85453545,126.75,126.7,27.85453545]
[1744577424436,7.8895,126.75,126.71,27.85453545]
[1744577424927,0.14216157,126.74,126.7,27.85453545]
[1744577425125,0.14216157,126.74,126.68,0.063]
[1744577425126,34.37333545,126.73,126.68,35.81093545]
[1744577426051,0.14216157,126.72,126.68,27.91753545]
[1744577426258,27.99669702,126.72,126.68,0.063]
[1744577426560,8.03356157,126.72,126.68,27.91753545]
[1744577427057,35.88809702,126.72,126.68,0.063]
[1744577428655,8.03356157,126.72,126.68,0.063]
[1744577429462,7.8914,126.72,126.68,0.063]
[1744577429651,7.8914,126.72,126.68,27.91753545]
[1744577429956,7.8914,126.72,126.68,0.063]
[1744577430256,35.74593545,126.72,126.68,0.063]
[1744577431255,7.8914,126.72,126.68,0.063]
[1744577431439,35.74593545,126.72,126.68,0.063]
[1744577432159,8.0977,126.73,126.68,0.063]
[1744577432342,6.5188,126.73,126.7,27.85453545]
[1744577432548,6.5188,126.73,126.69,27.85453545]
[1744577432956,14.4095,126.73,126.69,27.85453545]
[1744577433264,6.5188,126.73,126.69,35.74733545]
[1744577433556,34.37333545,126.73,126.68,27.91753545]
[1744577433737,27.85453545,126.72,126.68,0.063]
[1744577434957,35.74623545,126.72,126.68,0.063]
[1744577436962,7.8917,126.72,126.68,0.063]
[1744577437169,7.8917,126.72,126.67,35.31193545]
[1744577437340,27.99669702,126.71,126.66,27.91753545]
[1744577438368,27.85453545,126.7,126.66,0.063]
[1744577439133,35.74773545,126.7,126.66,0.063]
[1744577439342,6.5188,126.73,126.68,27.85453545]
[1744577439567,9.9,126.75,126.72,17.42882832]
[1744577439769,14.34046157,126.76,126.73,17.42882832]
[1744577440063,14.1979,126.76,126.74,17.42882832]
[1744577440271,6.309,126.76,126.74,17.42882832]
[1744577440565,6.309,126.76,126.73,17.42882832]
[1744577440969,14.1979,126.76,126.72,17.42882832]
[1744577441287,6.309,126.76,126.73,27.87648802]
[1744577441834,0.14216157,126.75,126.68,7.8939]
[1744577442038,28.01864959,126.75,126.7,27.87648802]
[1744577442248,0.14216157,126.75,126.7,27.87648802]
[1744577442567,28.01864959,126.75,126.7,27.87648802]
[1744577443369,7.8901,126.74,126.7,27.87648802]
[1744577444771,27.87648802,126.73,126.68,35.77008802]
[1744577445474,35.76658802,126.74,126.69,27.87648802]
[1744577445644,27.87648802,126.71,126.66,0.063]
[1744577445844,27.87648802,126.7,126.66,0.063]
[1744577446057,1.5703,126.71,126.66,0.063]
[1744577446058,27.87648802,126.69,126.66,0.063]
[1744577446460,29.44678802,126.71,126.66,7.9581]
[1744577446749,0.14216157,126.72,126.68,27.87648802]
[1744577447160,37.77648802,126.73,126.68,27.87648802]
[1744577447368,9.9,126.73,126.68,27.87648802]
[1744577447667,17.7911,126.73,126.69,27.87648802]
[1744577447847,17.7911,126.73,126.68,35.77018802]
[1744577448045,45.66758802,126.73,126.68,35.77018802]
[1744577448738,35.76758802,126.73,126.68,35.77018802]
[1744577449848,7.8911,126.73,126.68,35.77018802]
[1744577450054,8.03246157,126.74,126.69,27.87648802]
[1744577450358,6.309,126.76,126.73,27.87648802]
[1744577450555,0.14216157,126.81,126.75,27.87648802]
[1744577450866,8.02796157,126.81,126.77,27.87648802]
[1744577451241,7.9116,126.82,126.79,27.87648802]
[1744577451442,6.3413,126.82,126.79,27.87648802]
[1744577452367,6.3413,126.82,126.79,25.37648802]
[1744577452669,6.3413,126.82,126.79,27.87648802]
[1744577452876,14.2265,126.82,126.73,1.5061]
[1744577453167,42.10298802,126.82,126.77,27.87648802]
[1744577453556,14.2265,126.82,126.78,27.87648802]
[1744577453862,14.2265,126.82,126.77,27.87648802]
[1744577454061,14.2265,126.82,126.78,27.87648802]
[1744577454273,6.3413,126.82,126.78,27.87648802]
[1744577454472,0.03,126.83,126.81,27.87648802]
[1744577454644,0.03,126.83,126.76,110.211]
[1744577454645,0.03,126.83,126.82,27.87648802]
[1744577455051,0.03,126.83,126.78,18.64964886]
[1744577455052,0.03,126.83,126.81,27.87648802]
[1744577456281,0.03,126.83,126.82,27.87648802]
[1744577457145,0.03,126.83,126.82,46.52613688]
[1744577457478,0.01,126.84,126.83,18.933972]
[1744577457646,0.01,126.84,126.83,27.87648802]
[1744577458071,0.01,126.84,126.83,46.81046002]
[1744577458275,0.0001,126.85,126.84,0.28432314]
[1744577458452,0.0001,126.85,126.84,28.16081116]
[1744577458754,0.0001,126.85,126.84,46.81046002]
[1744577459766,0.0001,126.85,126.84,46.95262159]
[1744577460072,0.0001,126.85,126.84,46.52613688]
[1744577460280,0.0001,126.85,126.84,54.41003688]
[1744577460777,0.0001,126.85,126.84,35.76038802]
[1744577461870,0.0001,126.85,126.84,27.87648802]
[1744577462066,0.0001,126.85,126.83,27.87648802]
[1744577462275,0.0001,126.85,126.84,35.76038802]
[1744577462457,0.0001,126.85,126.84,34.41003688]
[1744577462853,0.0001,126.85,126.84,15.76038802]
[1744577463258,0.0001,126.85,126.84,16.18687273]
[1744577463453,0.03,126.91,126.87,18.64964886]
[1744577463660,0.03,126.91,126.9,27.87648802]
[1744577464466,0.03,126.91,126.85,7.8833]
[1744577464661,27.90648802,126.91,126.86,27.87648802]
[1744577464863,27.87648802,126.9,126.85,27.87648802]
[1744577465067,27.87648802,126.9,126.84,35.76028802]
[1744577465276,46.98262159,126.91,126.85,27.87648802]
[1744577465473,27.87648802,126.9,126.85,27.87648802]
[1744577465982,19.10613357,126.91,126.84,7.8838]
[1744577465983,0.03,126.91,126.88,27.87648802]
[1744577466960,0.03,126.91,126.9,27.87648802]
[1744577468369,0.03,126.91,126.9,54.40633688]
[1744577468572,0.03,126.91,126.9,35.75668802]
[1744577469685,0.03,126.91,126.9,54.40633688]
[1744577470186,0.03,126.91,126.9,54.83282159]
[1744577470686,0.03,126.91,126.9,54.40633688]
[1744577470867,0.03,126.91,126.9,35.75668802]
[1744577471063,0.03,126.91,126.9,54.69066002]
[1744577471265,0.03,126.93,126.92,0.28432314]
[1744577471582,0.03,126.94,126.93,72.52613688]
[1744577471764,0.03,126.94,126.93,27.87648802]
[1744577472770,0.03,126.94,126.88,7.8814]
[1744577473153,0.03,126.94,126.9,27.87648802]
[1744577473577,27.87648802,126.93,126.88,35.75788802]
[1744577473811,27.87648802,126.92,126.87,27.87648802]
[1744577473990,28.01864959,126.9,126.85,27.87648802]
[1744577474166,27.87648802,126.89,126.84,27.87648802]
[1744577474364,27.87648802,126.89,126.83,7.8845]
[1744577474365,28.01864959,126.9,126.85,27.87648802]
[1744577474560,0.14216157,126.87,126.83,27.87648802]
[1744577474773,28.01864959,126.87,126.82,27.87648802]
[1744577475477,28.01864959,126.87,126.78,0.063]
[1744577475478,27.87648802,126.83,126.78,0.063]
[1744577475787,27.87648802,126.83,126.78,27.93948802]
[1744577475987,28.30297273,126.82,126.78,0.063]
[1744577476197,27.87648802,126.8,126.78,0.063]
[1744577476491,28.30297273,126.82,126.78,0.063]
[1744577476664,36.18827273,126.82,126.78,0.063]
[1744577477004,8.31178471,126.82,126.78,0.063]
[1744577477299,0.42648471,126.85,126.8,27.87648802]
[1744577477469,19.07613357,126.85,126.8,27.87648802]
[1744577477662,29.41848802,126.86,126.81,27.87648802]
[1744577477893,6.5003,126.87,126.83,27.87648802]
[1744577478069,6.5003,126.87,126.78,18.71264886]
[1744577478269,6.5003,126.87,126.83,27.87648802]
[1744577479088,27.87648802,126.85,126.79,7.8869]
[1744577479394,27.87648802,126.85,126.8,27.87648802]
[1744577479579,46.95262159,126.86,126.81,27.87648802]
[1744577479776,6.5003,126.87,126.79,27.6045]
[1744577480084,0.14216157,126.86,126.79,27.6045]
[1744577480289,28.01864959,126.86,126.81,27.87648802]
[1744577480665,0.14216157,126.86,126.81,27.87648802]
[1744577480994,0.14216157,126.86,126.82,7.8851]
[1744577481170,26.95633357,126.9,126.83,27.87648802]
[1744577481370,0.14216157,126.88,126.83,27.87648802]
[1744577481572,0.14216157,126.88,126.84,27.87648802]
[1744577481793,28.01864959,126.88,126.83,27.87648802]
[1744577482589,0.14216157,126.88,126.84,27.87648802]
[1744577482987,28.01864959,126.88,126.83,35.76088802]
[1744577483798,0.14216157,126.85,126.78,19.7808]
[1744577483968,27.87648802,126.82,126.78,0.063]
[1744577484173,27.87648802,126.81,126.78,0.063]
[1744577484388,27.87648802,126.82,126.78,0.063]
[1744577484589,28.01864959,126.8,126.78,0.063]
[1744577485487,28.16081116,126.79,126.78,0.063]
[1744577485676,46.81046002,126.79,126.78,0.063]
[1744577486190,46.95262159,126.79,126.78,0.063]
[1744577486986,0.14216157,126.79,126.78,0.063]
[1744577487192,46.66829845,126.82,126.78,0.063]
[1744577487502,18.79181043,126.82,126.78,0.063]
[1744577487673,46.66829845,126.82,126.78,0.063]
[1744577488576,54.55359845,126.82,126.78,0.063]
[1744577488770,54.05359845,126.82,126.78,0.063]
[1744577489104,26.0,126.75,126.71,0.063]
[1744577489273,27.87648802,126.72,126.71,0.063]
[1744577489473,28.16081116,126.72,126.71,0.063]
[1744577489778,0.28432314,126.72,126.71,0.063]
[1744577489974,26.28432314,126.72,126.71,0.063]
[1744577490173,0.28432314,126.73,126.71,0.063]
[1744577490381,28.16081116,126.73,126.71,0.063]
[1744577490691,36.05161116,126.73,126.71,0.063]
[1744577490874,0.14216157,126.72,126.71,0.063]
[1744577492869,18.79181043,126.77,126.71,42.37747031]
[1744577493083,68.99458074,126.77,126.71,42.37747031]
[1744577493289,0.14216157,126.75,126.71,0.063]
[1744577493685,8.03196157,126.75,126.71,0.063]
[1744577494378,42.31447031,126.72,126.71,0.063]
[1744577494576,42.45663188,126.72,126.71,0.063]
[1744577494775,18.933972,126.74,126.71,0.063]
[1744577494776,42.31447031,126.74,126.71,0.063]
[1744577494971,0.14216157,126.73,126.71,0.063]
[1744577495183,42.45663188,126.73,126.71,0.063]
[1744577495392,42.45663188,126.72,126.71,0.063]
[1744577495787,8.03356157,126.72,126.71,0.063]
[1744577496096,50.34803188,126.72,126.71,0.063]
[1744577497217,8.03356157,126.72,126.71,0.063]
[1744577497507,50.34803188,126.72,126.71,0.063]
[1744577497909,8.03356157,126.72,126.71,0.063]
[1744577498408,9.84,126.75,126.71,42.37747031]
[1744577498586,7.8897,126.75,126.71,42.37747031]
[1744577499299,7.8897,126.75,126.71,0.063]
[1744577500082,8.03116157,126.76,126.71,42.37747031]
[1744577500282,50.34563188,126.76,126.71,42.37747031]
[1744577501206,8.03116157,126.76,126.71,50.26927031]
[1744577501610,50.34563188,126.76,126.71,42.37747031]
[1744577501988,8.03116157,126.76,126.71,42.37747031]
[1744577502202,8.03116157,126.76,126.72,42.31447031]
[1744577502400,0.28432314,126.78,126.72,42.31447031]
[1744577502717,50.34303188,126.8,126.71,7.9549]
[1744577502917,42.31447031,126.76,126.71,42.37747031]
[1744577503095,42.31447031,126.72,126.71,0.063]
[1744577503423,50.63235502,126.72,126.71,0.063]
[1744577503593,50.34803188,126.72,126.71,0.063]
[1744577504004,69.28200388,126.72,126.71,0.063]
[1744577504294,50.63235502,126.72,126.71,0.063]
[1744577504505,111.59647419,126.72,126.71,0.063]
[1744577505109,111.59647419,126.72,126.71,0.0001]
[1744577505110,69.28200388,126.72,126.71,0.0001]
[1744577505421,111.59647419,126.72,126.71,0.0001]
[1744577506711,69.28200388,126.72,126.71,0.0001]
[1744577507119,50.34803188,126.72,126.71,0.0001]
[1744577507417,69.28200388,126.72,126.71,0.0001]
[1744577507796,26.96753357,126.72,126.71,0.0001]
[1744577508013,50.34803188,126.72,126.71,0.0001]
[1744577508318,69.28200388,126.72,126.71,0.0001]
[1744577510008,26.96753357,126.72,126.71,0.0001]
[1744577510198,69.28200388,126.72,126.71,0.0001]
[1744577511127,26.96753357,126.72,126.71,0.0001]
[1744577511303,54.87748724,126.72,126.71,0.0001]
[1744577514228,26.825372,126.72,126.71,0.0001]
[1744577514433,8.03356157,126.72,126.71,0.0001]
[1744577514930,35.94351524,126.72,126.71,0.0001]
[1744577520628,54.87748724,126.72,126.71,0.0001]
[1744577520815,44.79181043,126.7,126.69,0.063]
[1744577521016,18.79181043,126.69,126.66,0.063]
[1744577521217,46.98608724,126.67,126.66,0.063]
[1744577521610,46.98608724,126.67,126.62,0.063]
[1744577521611,26.14216157,126.64,126.62,0.063]
[1744577521818,82.82608724,126.64,126.62,0.063]
[1744577522018,19.07613357,126.63,126.62,0.063]
[1744577522311,46.98608724,126.63,126.62,0.063]
[1744577523514,7.8967,126.64,126.62,0.063]
[1744577523709,0.14216157,126.66,126.62,27.97295367]
[1744577524121,45.64405367,126.68,126.63,27.90995367]
[1744577524323,27.90995367,126.64,126.62,0.063]
[1744577524519,28.05211524,126.63,126.62,0.063]
[1744577525035,19.07613357,126.67,126.62,0.063]
[1744577525223,28.33643838,126.64,126.62,0.063]
[1744577525930,36.23333838,126.64,126.62,0.063]
[1744577526122,28.05211524,126.63,126.62,0.063]
[1744577527628,35.94911524,126.63,126.62,0.063]
[1744577528344,0.14216157,126.63,126.62,0.063]
[1744577528638,7.8959,126.65,126.62,0.063]
[1744577530044,35.80585367,126.65,126.62,0.063]
[1744577530239,28.05211524,126.63,126.62,0.063]
[1744577530740,46.98608724,126.63,126.62,0.063]
[1744577532059,54.88308724,126.63,126.62,0.063]
[1744577532233,19.07613357,126.62,126.61,0.063]
[1744577532430,26.28432314,126.6,126.59,0.063]
[1744577532626,54.19427681,126.6,126.59,0.063]
[1744577532822,54.33643838,126.6,126.59,0.063]
[1744577533146,9.84,126.62,126.59,0.063]
[1744577533447,7.8966,126.64,126.6,27.90995367]
[1744577533744,27.90995367,126.63,126.59,0.063]
[1744577533933,0.14216157,126.65,126.6,27.90995367]
[1744577534251,7.8957,126.65,126.61,27.90995367]
[1744577534625,35.80565367,126.65,126.6,27.90995367]
[1744577534829,45.64525367,126.66,126.6,27.90995367]
[1744577536143,45.64525367,126.66,126.6,35.80865367]
[1744577537349,45.64525367,126.66,126.59,0.063]
[1744577537350,27.90995367,126.61,126.59,0.063]
[1744577537547,27.90995367,126.63,126.59,0.063]
[1744577537754,27.90995367,126.64,126.59,27.97295367]
[1744577537947,27.90995367,126.63,126.59,0.063]
[1744577538154,27.90995367,126.6,126.59,0.063]
[1744577538362,46.98608724,126.6,126.59,0.063]
[1744577538954,56.82608724,126.6,126.59,0.063]
[1744577539357,64.72488724,126.6,126.59,0.063]
[1744577540031,64.72488724,126.6,126.59,0.0001]
[1744577541732,64.4405641,126.6,126.59,0.0001]
[1744577541941,64.72488724,126.6,126.59,0.0001]
[1744577542158,45.64875367,126.6,126.59,0.0001]
[1744577542473,7.8951,126.66,126.59,0.0001]
[1744577542766,1.5322,126.67,126.62,27.90995367]
[1744577542767,8.03686157,126.67,126.62,27.90995367]
[1744577542938,35.94681524,126.67,126.62,27.90995367]
[1744577543140,27.90995367,126.66,126.61,27.90995367]
[1744577543450,35.80535367,126.66,126.61,35.80815367]
[1744577544260,7.8954,126.66,126.61,35.80815367]
[1744577544453,28.05211524,126.68,126.62,27.90995367]
[1744577544847,27.90995367,126.66,126.6,7.8988]
[1744577545058,8.03626157,126.68,126.62,27.90995367]
[1744577545363,35.94621524,126.68,126.62,27.90995367]
[1744577545535,35.94621524,126.68,126.62,35.80735367]
[1744577546156,27.90995367,126.67,126.59,0.0001]
[1744577546338,27.90995367,126.67,126.6,7.8988]
[1744577546537,27.90995367,126.67,126.62,27.90995367]
[1744577547765,35.80485367,126.67,126.62,35.80755367]
[1744577549268,7.8949,126.67,126.6,7.8988]
[1744577549467,27.90995367,126.65,126.6,7.8988]
[1744577549764,7.8949,126.67,126.61,35.80755367]
[1744577549952,35.80485367,126.67,126.62,27.90995367]
[1744577550155,35.80485367,126.67,126.61,35.80755367]
[1744577550467,7.8949,126.67,126.62,27.90995367]
[1744577550675,35.80485367,126.67,126.62,27.90995367]
[1744577550962,35.80485367,126.67,126.61,35.80755367]
[1744577551171,27.90995367,126.65,126.59,27.91005367]
[1744577551550,27.90995367,126.65,126.6,27.90995367]
[1744577552376,0.14216157,126.66,126.6,35.80855367]
[1744577552549,27.90995367,126.66,126.61,27.90995367]
[1744577552870,7.8945,126.67,126.62,27.90995367]
[1744577553669,35.80445367,126.67,126.62,35.80725367]
[1744577554554,35.80445367,126.67,126.62,27.90995367]
[1744577554754,27.90995367,126.65,126.59,35.80905367]
[1744577555472,27.90995367,126.65,126.6,27.90995367]
[1744577556550,35.80615367,126.65,126.6,35.80875367]
[1744577558281,27.90995367,126.63,126.59,0.0001]
[1744577558451,27.90995367,126.61,126.59,0.0001]
[1744577558652,27.90995367,126.62,126.59,0.0001]
[1744577559061,27.90995367,126.63,126.59,0.0001]
[1744577560356,7.8976,126.62,126.59,0.0001]
[1744577560757,35.80755367,126.62,126.59,0.0001]
[1744577561269,27.90995367,126.61,126.59,0.0001]
[1744577561456,7.8976,126.62,126.59,0.0001]
[1744577561673,35.80755367,126.62,126.59,0.0001]
[1744577563058,27.90995367,126.61,126.59,0.0001]
[1744577564889,35.80875367,126.61,126.59,0.0001]
[1744577565581,7.8988,126.61,126.59,0.0001]
[1744577567165,35.80875367,126.61,126.59,0.0001]
[1744577568178,7.8988,126.61,126.59,0.0001]
[1744577568964,35.80875367,126.61,126.59,0.0001]
[1744577569281,7.8988,126.61,126.59,0.0001]
[1744577569668,9.96216157,126.64,126.59,0.0001]
[1744577569980,7.8957,126.65,126.61,27.90995367]
[1744577570156,7.8954,126.66,126.62,27.90995367]
[1744577570557,7.8954,126.66,126.61,27.90995367]
[1744577570756,7.8954,126.66,126.62,27.90995367]
[1744577571555,0.063,126.67,126.63,27.90995367]
[1744577571760,0.063,126.67,126.64,27.90995367]
[1744577574783,27.97295367,126.67,126.62,29.55245367]
[1744577575982,0.063,126.67,126.63,27.90995367]
[1744577576286,0.063,126.67,126.64,27.90995367]
[1744577576684,0.063,126.67,126.66,27.90995367]
[1744577580491,0.063,126.67,126.62,21.3866]
[1744577580668,0.063,126.67,126.63,27.90995367]
[1744577581163,27.97295367,126.67,126.62,1.6425]
[1744577581364,0.063,126.67,126.65,27.90995367]
[1744577581585,0.063,126.67,126.61,27.6435]
[1744577581586,0.063,126.67,126.66,27.90995367]
[1744577581763,0.063,126.67,126.64,27.90995367]
[1744577581959,27.90995367,126.66,126.61,35.80805367]
[1744577582287,27.90995367,126.65,126.6,27.90995367]
[1744577582589,27.90995367,126.66,126.6,27.90995367]
[1744577583285,27.97295367,126.67,126.61,27.90995367]
[1744577583583,0.063,126.67,126.65,27.90995367]
[1744577583790,0.063,126.67,126.66,27.90995367]
[1744577585391,0.063,126.67,126.63,6.5897]
[1744577585695,27.97295367,126.67,126.62,27.90995367]
[1744577586193,0.063,126.67,126.63,27.90995367]
[1744577586876,0.063,126.67,126.65,27.90995367]
[1744577588688,0.063,126.67,126.64,27.90995367]
[1744577588868,0.063,126.67,126.63,35.80665367]
[1744577589688,27.97295367,126.67,126.61,7.8982]
[1744577589898,27.90995367,126.64,126.59,0.0001]
[1744577590265,0.063,126.67,126.62,27.90995367]
[1744577590476,0.063,126.67,126.65,27.90995367]
[1744577591411,0.063,126.67,126.64,27.90995367]
[1744577591997,0.063,126.67,126.64,35.80625367]
[1744577592196,0.063,126.67,126.66,27.90995367]
[1744577593571,0.0001,126.67,126.66,46.98608724]
[1744577593769,0.0001,126.67,126.66,54.88118724]
[1744577594605,0.0001,126.67,126.66,35.80505367]
[1744577596594,0.0001,126.67,126.66,27.90995367]
[1744577596888,0.0001,126.67,126.66,35.80505367]
[1744577598190,0.0001,126.67,126.66,64.68118724]
[1744577599591,0.0001,126.67,126.66,45.60505367]
[1744577601884,0.0001,126.67,126.66,64.68118724]
[1744577604576,0.0001,126.67,126.64,7.8963]